Cogmind - Beta 11 X8 @@@ ROGUE MODE // 2021.12.21 @ 16:47:27 Player: btmk16 Result: Destroyed by as-80485 with Assembled Heavy Rifle Performance ------------- Evolutions (0) 0 Regions Visited (2) 400 Robots Destroyed (15) 75 Value Destroyed (346) 346 Prototype IDs (0) 0 Alien Tech Used (0) 0 Bonus (0) 0 TOTAL SCORE: 821 Bonus ------- None Cogmind --------- Core Integrity 0/250 Matter 390/400 Energy 100/100 System Corruption 5% Temperature Cool (0) Movement Treading (160) Location -10/Mines Parts ------- > --- POWER (1) -------- (None) > --- PROPULSION (2) --- Light Treads Light Treads > --- UTILITY (2) ------ Large Storage Unit Medium Matter Pod > --- WEAPON (2) ------- (None) > --- INVENTORY (15) --- Light Nuclear Core Wheel Wheel Wheel Heat Sink Improved Heat Sink Small Storage Unit Sensor Array Tractor Beam Rocket Launcher Rocket Launcher Rocket Launcher Rocket Launcher Peak State ------------ > --- POWER ------------ Ion Engine > --- PROPULSION ------- Wheel Compact Wheel > --- UTILITY ---------- Large Storage Unit Medium Matter Pod > --- WEAPON ----------- Heavy Assault Rifle Heavy Assault Rifle > --- INVENTORY -------- Light Nuclear Core Aluminum Leg Wheel Heat Sink Improved Heat Sink Small Storage Unit Sensor Array Small Laser Rocket Launcher Rocket Launcher Rocket Launcher Rocket Launcher [Rating: 11] Favorites ----------- Power Ion Engine Engine Ion Engine Propulsion Aluminum Leg Treads Light Treads Leg Aluminum Leg Wheel Wheel Utility Medium Matter Pod Storage Medium Matter Pod Weapon Heavy Assault Rifle Energy Gun Medium Laser Ballistic Gun Heavy Assault Rifle Launcher Rocket Launcher Build | -11 -10 -10 ------- Run | Scr Mat Min Slots Evolved . | . . . Power . | . . . Propulsion . | . . . Utility . | . . . Weapon . | . . . Parts Attached 16 | . 14 2 Power 2 | . 2 . Engine 2 | . 2 . Core . | . . . Reactor . | . . . Propulsion 6 | . 4 2 Treads 2 | . . 2 Leg . | . . . Wheel 4 | . 4 . Hover . | . . . Flight . | . . . Utility 2 | . 2 . Device . | . . . Storage 2 | . 2 . Processor . | . . . Hackware . | . . . Protection . | . . . Artifact . | . . . Weapon 6 | . 6 . Energy Gun 3 | . 3 . Energy Cannon . | . . . Ballistic Gun 2 | . 2 . Ballistic Cannon . | . . . Launcher 1 | . 1 . Special Weapon . | . . . Impact Weapon . | . . . Slashing Weapon . | . . . Piercing Weapon . | . . . Special Melee Weapon . | . . . Unidentified Prototypes . | . . . Parts Lost 8 | . 3 5 Power 1 | . . 1 Propulsion 3 | . 1 2 Utility . | . . . Weapon 4 | . 2 2 Highest Loss Streak 5 | . 2 5 Average Slot Usage (%) 98 | . 99 85 Engine 14 | . 14 14 Leg 16 | . 16 . Wheel 11 | . 11 23 Storage 27 | . 27 28 Energy Gun 8 | . 8 9 Ballistic Gun 18 | . 19 9 Naked Turns . | . . . Heaviest Build 33 | 11 33 31 Greatest Support 40 | 20 26 40 Greatest Overweight (x) 2 | . 1 2 Average Overweight (x) . | . . 1 Largest Inventory Capacity 15 | 8 15 15 Average Capacity 10 | 8 10 15 Most Carried 15 | 6 15 15 Average Carried 9 | 6 9 14 Final Capacity 15 | 8 15 15 Final Carried 15 | 6 15 13 Class Distribution -------------------- 100% | Mutant Dominant Class ---------------- Mutant | -10/Materials Mutant | -10/Mines Resources | -11 -10 -10 ----------- Run | Scr Mat Min Matter Collected 631 | 200 428 3 Remotely . | . . . Salvage Created 440 | . 440 . Parts 37 | . 37 . Haulers Intercepted 2 | . 2 . Recyclers Shooed 1 | . 1 . Parts Field Recycled . | . . . Retrieved Matter . | . . . Parts Self-Destructed . | . . . Prevented . | . . . Kills | -11 -10 -10 ------- Run | Scr Mat Min Combat Hostiles Destroyed 10 | . 10 . Guns 10 | . 10 . Classes Destroyed 5 | . 5 . Hauler 2 | . 2 . Operator 1 | . 1 . Watcher 2 | . 2 . Swarmer 3 | . 3 . Grunt 7 | . 7 . Best Kill Streak 3 | . 3 . Combat Bots Only 3 | . 3 . Max Kills in Single Turn 1 | . 1 . Gunslinging . | . . . Exploded . | . . . Melee . | . . . Uniques/NPCs Destroyed . | . . . Combat | -11 -10 -10 -------- Run | Scr Mat Min Damage Taken 1260 | . 689 571 Core 256 | . 112 144 Absorbed by Shields . | . . . Core Remaining (%) 100 | 100 . . Volleys Fired 58 | . 57 1 Largest 2 | . 2 2 Hottest 70 | . 70 63 Shots Fired 109 | . 107 2 Gun 108 | . 106 2 Cannon . | . . . Launcher 1 | . 1 . Special . | . . . Kinetic 77 | . 76 1 Thermal 31 | . 30 1 Explosive 1 | . 1 . Electromagnetic . | . . . Robot Hit Streak 16 | . 16 1 Robot Miss Streak 3 | . 3 1 Penetration Max . | . . . Secondary Targets 1 | . 1 . Max Gunslinging Chain 1 | . 1 . Shots Hit Robots 73 | . 72 1 Core Hits 23 | . 22 1 Critical Kills . | . . . Critical Parts Destroyed 1 | . 1 . Critical Strikes 5 | . 5 . Burn 4 | . 4 . Destroy 1 | . 1 . Melee Attacks . | . . . Impact . | . . . Slashing . | . . . Piercing . | . . . Sneak Attacks . | . . . Combat Hostiles . | . . . Follow-up Attacks . | . . . Damage Inflicted 1078 | . 1065 13 Guns 996 | . 983 13 Cannons . | . . . Explosions 79 | . 79 . Melee . | . . . Ramming 3 | . 3 . Kinetic 745 | . 732 13 Thermal 251 | . 251 . Explosive 79 | . 79 . Electromagnetic . | . . . Impact . | . . . Slashing . | . . . Piercing . | . . . Highest Corruption 5 | . . 5 Average Corruption 5 | . . 5 Corruption Purged . | . . . Overload Shots . | . . . Overflow Damage . | . . . Projectiles . | . . . Explosions . | . . . Melee . | . . . Knockbacks . | . . . Impact . | . . . Kinetic . | . . . Secondary . | . . . Self-Inflicted Damage . | . . . Shots . | . . . Rammed . | . . . Targets Rammed 1 | . 1 . Kicked 1 | . 1 . Crushed . | . . . Highest Temperature 269 | . 269 3 Average Temperature 55 | . 56 2 Received Heat Transfer 396 | . 396 . Siege Activations . | . . . Robots Corrupted . | . . . Combat Hostiles . | . . . Parts Fried . | . . . Impact Corruptions . | . . . Robots Melted . | . . . Combat Hostiles . | . . . Parts Melted 1 | . 1 . Heat Transferred 941 | . 941 . Parts Sabotaged . | . . . Parts Stolen . | . . . Parts Stripped . | . . . Power Chain Reactions . | . . . Missiles Intercepted . | . . . Alert | -11 -10 -10 ------- Run | Scr Mat Min Peak Influence 177 | . 177 24 Initial 24 | . . 24 Average 95 | . 98 15 Maximum Alert Level . | . . . Low Security (%) 100 | 100 100 100 Level 1 . | . . . Level 2 . | . . . Level 3 . | . . . Level 4 . | . . . Level 5 . | . . . High Security . | . . . Max Security . | . . . Squads Dispatched 1 | . 1 . Investigation . | . . . Extermination . | . . . Reinforcement 1 | . 1 . Assault . | . . . Garrison . | . . . Intercept . | . . . Construction Impeded . | . . . Haulers Reinforced . | . . . Active Scanning Responses . | . . . Cargo Convoy Interrupts . | . . . Stealth | -11 -10 -10 --------- Run | Scr Mat Min Distress Signals 2 | . 2 . Communications Jammed . | . . . Distress Signals . | . . . Times Spotted 28 | . 20 8 Peak Tracking Total 10 | . 4 10 Tactical Retreats 1 | . 1 . Traps | -11 -10 -10 ------- Run | Scr Mat Min Traps Triggered . | . . . Indirectly . | . . . Trap Hack Attempts . | . . . Triggered . | . . . Disarmed . | . . . Reprogrammed . | . . . Reused . | . . . Traps Extracted . | . . . Installed . | . . . Triggered . | . . . Machines | -11 -10 -10 ---------- Run | Scr Mat Min Machines Disabled . | . . . Max in Single Turn . | . . . Machines Sabotaged . | . . . Garrisons Compromised . | . . . Overloaded Fab Kills . | . . . Hacking | -11 -10 -10 --------- Run | Scr Mat Min Machines Accessed 4 | . 4 . Terminals 4 | . 4 . Fabricators . | . . . Repair Stations . | . . . Recycling Units . | . . . Scanalyzers . | . . . Garrison Access . | . . . Total Hacks 11 | . 11 . Successful 5 | . 5 . Failed 6 | . 6 . Catastrophic . | . . . Database Lockouts . | . . . Manual 6 | . 6 . Terminals 11 | . 11 . Fabricators . | . . . Repair Stations . | . . . Recycling Units . | . . . Scanalyzers . | . . . Garrison Access . | . . . Terminal Hacks 3 | . 3 . Robot Analysis 1 | . 1 . Locate Traps 1 | . 1 . Zone Layout 1 | . 1 . Fabricator Hacks . | . . . Repair Station Hacks . | . . . Recycling Unit Hacks . | . . . Scanalyzer . | . . . Garrison Access Hacks . | . . . Unauthorized Hacks 2 | . 2 . Terminals 2 | . 2 . Track 1 | . 1 . Botnet 1 | . 1 . Fabricators . | . . . Repair Stations . | . . . Recycling Units . | . . . Scanalyzers . | . . . Garrison Access . | . . . Data Cores Recovered . | . . . Used . | . . . Hacking Detections 3 | . 3 . Full Trace Events . | . . . Feedback Events . | . . . Feedback Blocked . | . . . Robot Schematics Acquired . | . . . Robots Built . | . . . Authchips . | . . . Time . | . . . Total Robot Build Rating . | . . . Part Schematics Acquired . | . . . Parts Built . | . . . Authchips . | . . . Time . | . . . Total Part Build Rating . | . . . Parts Repaired . | . . . Time . | . . . Parts Recycled . | . . . Recycled Matter . | . . . Retrieved Matter . | . . . Retrieved Components . | . . . Parts Scanalyzed . | . . . Part Schematics Acquired . | . . . Parts Damaged . | . . . Bothacking | -11 -10 -10 ------------ Run | Scr Mat Min Used RIF Installer . | . . . Robots Hacked . | . . . Non-combat . | . . . Combat . | . . . Robot Hacks Applied . | . . . Relay Couplers Released . | . . . Fabnet Peak Effective % . | . . . Robots Rewired . | . . . Allies Hacked . | . . . Hacks Repelled . | . . . Allies | -11 -10 -10 -------- Run | Scr Mat Min Total Allies . | . . . Largest Group . | . . . Highest-Rated Group . | . . . Highest-Rated Ally . | . . . Total Orders . | . . . Ally Attacks . | . . . Total Damage . | . . . Kills . | . . . Allies Corrupted . | . . . Allies Melted . | . . . Intel | -11 -10 -10 ------- Run | Scr Mat Min Robot Analysis Total 1 | . 1 . Derelict Logs Recovered . | . . . Drone Launches . | . . . Drone Recoveries . | . . . Exploration | -11 -10 -10 ------------- Run | Scr Mat Min Turns Passed 976 | 4 943 29 Spaces Moved 662 | 4 635 23 Core . | . . . Treads 3 | . . 3 Legs 358 | 4 354 . Wheels 301 | . 281 20 Hover . | . . . Flight . | . . . Fastest Speed 90 | 120 90 95 Average Speed 111 | 120 111 105 Slowest Speed 160 | 120 120 160 Overloaded Moves . | . . . Propulsion Burnouts . | . . . Robots Hopped . | . . . Cave-ins Triggered . | . . . Exploration Rate (%) 33 | 2 89 10 Regions Visited 2 Branch Regions 1 Pre-discovered Areas . | . . . Known Exits Taken . | . . . Unknown Exits Taken 2 | 1 1 . Scrap Searched . | . . . Spaces Dug 13 | . 13 . Terrain Destroyed 13 | . 13 . Melee . | . . . Projectile . | . . . AOE 13 | . 13 . Terrain Rammed . | . . . Walls Destroyed . | . . . Machines Disabled . | . . . Actions | -11 -10 -10 --------- Run | Scr Mat Min Total 801 | 3 772 26 Wait 36 | . 36 . Move 660 | 3 634 23 Hop . | . . . Pick Up 17 | . 17 . Fast Attach 3 | . 3 . Attach 4 | . 2 2 Detach . | . . . Swap 9 | . 9 . Drop 13 | . 13 . Fire 58 | . 57 1 Melee . | . . . Ram . | . . . Kick 1 | . 1 . Crush . | . . . Escape Stasis . | . . . Rewire . | . . . Trap . | . . . Miscellaneous . | . . . Route ------- -11/Scrapyard -10/Materials (discovered 4 exits: [*Mat x3] / [*Min]) -10/Mines (discovered 2 exits: [*Mat x2]) History --------- Turn | Location | Event 1 | -11/Scrapyard | Discovered new exit (range 2) 5 | -11/Scrapyard | Entered Materials 229 | -10/Materials | Discovered new exit (range 16) 308 | -10/Materials | Build established: Mutant 444 | -10/Materials | Discovered new exit (range 14) 841 | -10/Materials | Discovered new exit (range 11) 880 | -10/Materials | Discovered new exit (range 11) 948 | -10/Materials | Entered Mines 949 | -10/Mines | Assembled infested the area 950 | -10/Mines | Discovered new exit (range 11) 957 | -10/Mines | Core integrity fell below 50% 965 | -10/Mines | Core integrity fell below 20% 976 | -10/Mines | Discovered new exit (range 5) 977 | -10/Mines | Destroyed by as-80485 with Assembled Heavy Rifle Last Messages --------------- 00958_ D-53 Grenadier destroyed. 00960_ Acquired 3 matter. 00961_ The unstable cave ceiling collapses. 00961_ U-05 Engineer lays Concrete. 00962_ YI-UF0: "BAROOM!" 00962_ U-05 Engineer destroyed. 00962_ T-07 Excavator destroyed. 00962_ as-20612 destroyed. 00963_ R-06 Scavenger destroyed. 00967_ U-05 Engineer lays Concrete. 00967_ Hvy. Assault Rifle destroyed. 00967_ U-05 Engineer destroyed. 00967_ Wheel destroyed. 00967_ Sml. Laser destroyed. 00967_ System corrupted by crushing effect (+3). 00967_ System corrupted by crushing effect (+2). 00971_ Wheel destroyed. 00973_ Ion Engine destroyed. 00975_ The unstable cave ceiling collapses. 00976_ EXIT=FOUND Map ----- +----------------------------------------------------+ | ??????? ?????????????????? | | ??????? ##???#????????????? | | ??????? ### ###??????????? | | ??????# #??????????? | | ?????## #??????????? | | ?##### ####?????????????? | | ## #????????????????? | | # ##????????????????? | | ###?????????????????? | | #????????????????????? | | # #????????????????????? | | # #????????????????????? | | # #????????????????????? | | # # % ##???????????????????? | | #?# % #???????????????????? | | ??# % #???????????????????? | | ??# [ ##??????????????????? | | ??# < #??????????????????? | | ??# #???????????????????? | | ??# ! #???????????????????? | | ??## % ##???????????????????? | | ???###| ##????????????????????? | | ?????# ##?????????????????????? | | ?????# #??????????????????????? | | ?????#a#??????????????????????? | | ?????#@#??????????????????????? | | ???? #??????????????????????? | | ??# ??????????????????????? | | ??## ??????????????????????? | | ???###